bitfinex/quotes_BTCUSD_20250523
["timestamp","ask_amount","ask_price","bid_price","bid_amount"]
[1747969360581,0.05093744,111250.0,111240.0,4.43497901]
[1747969361426,0.01733744,111250.0,111240.0,4.43497901]
[1747969361642,0.01733744,111250.0,111240.0,4.46193401]
[1747969362083,0.01733744,111250.0,111240.0,4.82151401]
[1747969362292,0.01733744,111250.0,111240.0,5.16151401]
[1747969362690,0.01933744,111250.0,111240.0,5.16151401]
[1747969362825,0.01933744,111250.0,111240.0,5.16251401]
[1747969363061,0.01733744,111250.0,111240.0,5.16251401]
[1747969367787,0.02632555,111250.0,111240.0,5.16251401]
[1747969368243,0.01733744,111250.0,111240.0,5.16251401]
[1747969368820,0.02632555,111250.0,111240.0,5.16251401]
[1747969371365,0.02632555,111250.0,111240.0,5.19117118]
[1747969371573,0.02632547,111250.0,111240.0,5.19117118]
[1747969372203,0.02632547,111250.0,111240.0,5.61133118]
[1747969372807,0.01733744,111250.0,111240.0,5.61133118]
[1747969373136,0.02632547,111250.0,111240.0,5.61133118]
[1747969373526,0.01733744,111250.0,111240.0,5.61133118]
[1747969376303,0.01733744,111250.0,111240.0,5.65113206]
[1747969376546,0.01733744,111250.0,111240.0,5.62743118]
[1747969376951,0.01733744,111250.0,111240.0,5.61133118]
[1747969378014,0.01733744,111250.0,111240.0,5.58267401]
[1747969379228,0.01706776,111250.0,111240.0,5.58267401]
[1747969379429,0.01706776,111250.0,111240.0,5.97047401]
[1747969380463,0.01706776,111250.0,111240.0,5.98697401]
[1747969382005,0.01706776,111250.0,111240.0,6.00257401]
[1747969382172,0.01706776,111250.0,111240.0,6.03819051]
[1747969382790,0.01706776,111250.0,111240.0,6.03719051]
[1747969382993,0.01706776,111250.0,111240.0,6.04319051]
[1747969384594,0.04268658,111270.0,111260.0,0.54672201]
[1747969384796,0.04319563,111270.0,111260.0,4.80889459]
[1747969385183,0.03420913,111270.0,111260.0,4.80889459]
[1747969385569,0.03420913,111270.0,111260.0,4.80366459]
[1747969385972,0.04319563,111270.0,111260.0,4.80366459]
[1747969386144,0.04419563,111270.0,111260.0,4.80366459]
[1747969386517,0.05318229,111270.0,111260.0,4.83061459]
[1747969386694,0.04419563,111270.0,111260.0,4.83061459]
[1747969387309,0.03520913,111270.0,111260.0,4.83161459]
[1747969387634,0.05318221,111270.0,111260.0,4.83161459]
[1747969388266,0.05218221,111270.0,111260.0,4.83161459]
[1747969388680,0.05218221,111270.0,111260.0,4.83261459]
[1747969389221,0.05218213,111270.0,111260.0,4.83261459]
[1747969389430,0.03420913,111270.0,111260.0,4.83261459]
[1747969389773,0.04319555,111270.0,111260.0,4.83261459]
[1747969390605,0.03420913,111270.0,111260.0,4.83261459]
[1747969390839,0.04319563,111270.0,111260.0,4.83261459]
[1747969391060,0.03420913,111270.0,111260.0,4.83261459]
[1747969391230,0.04319555,111270.0,111260.0,4.83261459]
[1747969391434,0.04319555,111270.0,111260.0,4.86130225]
[1747969391964,0.05218205,111270.0,111260.0,4.86126225]
[1747969392747,0.06116863,111270.0,111260.0,4.86126225]
[1747969392938,0.05218205,111270.0,111260.0,4.86126225]
[1747969393146,0.06116871,111270.0,111260.0,4.86126225]
[1747969393347,0.05218205,111270.0,111260.0,4.86126225]
[1747969394004,0.04319555,111270.0,111260.0,4.86126225]
[1747969394208,0.05218213,111270.0,111260.0,4.86126225]
[1747969394432,0.05218205,111270.0,111260.0,4.86126225]
[1747969396401,0.04319555,111270.0,111260.0,4.86126225]
[1747969396601,0.05218213,111270.0,111260.0,4.86126225]
[1747969397153,0.30407914,111270.0,111260.0,4.37874468]
[1747969397388,0.30407914,111270.0,111260.0,4.64802468]
[1747969397667,0.23192581,111270.0,111260.0,4.64802468]
[1747969398150,0.23192581,111270.0,111260.0,4.98802468]
[1747969399271,0.23192581,111270.0,111260.0,4.95933702]
[1747969405168,0.23192581,111270.0,111260.0,0.57944]
[1747969405169,0.45722421,111270.0,111260.0,0.57944]
[1747969405372,0.54391839,111270.0,111260.0,0.68916]
[1747969405576,0.54391839,111270.0,111260.0,2.63956]
[1747969405735,0.40816555,111270.0,111260.0,2.63856]
[1747969405942,0.40816555,111270.0,111260.0,2.72808151]
[1747969406976,0.33601222,111270.0,111260.0,2.72708151]
[1747969407764,0.33801222,111270.0,111260.0,2.72708151]
[1747969408156,0.34001222,111270.0,111260.0,2.72708151]
[1747969409576,0.34001222,111270.0,111260.0,2.50281568]
[1747969409781,0.34001222,111270.0,111260.0,4.38127751]
[1747969410510,0.34001222,111270.0,111260.0,2.73658151]
[1747969413622,0.34001222,111270.0,111260.0,2.04942151]
[1747969413823,0.33992561,111270.0,111260.0,2.73670151]
[1747969417864,0.33992561,111270.0,111260.0,3.07670151]
[1747969418822,0.33992561,111270.0,111260.0,2.73670151]
[1747969419667,0.2358392,111270.0,111260.0,2.73670151]
[1747969422367,0.2358392,111270.0,111260.0,2.64718]
[1747969424002,0.2358392,111270.0,111260.0,2.67226023]
[1747969425048,0.2358392,111270.0,111260.0,2.66151156]
[1747969430552,0.2358392,111270.0,111260.0,2.39215156]
[1747969430761,0.4611376,111270.0,111260.0,1.05875156]
[1747969430966,0.47567845,111270.0,111260.0,1.09101156]
[1747969431161,0.47567845,111270.0,111260.0,1.43101156]
[1747969431695,0.33992561,111270.0,111260.0,1.5009877]
[1747969432703,0.33992561,111270.0,111260.0,1.49741137]
[1747969435841,0.33992561,111270.0,111260.0,1.15741137]
[1747969436243,0.33992561,111270.0,111260.0,1.15493137]
[1747969436884,0.33992561,111270.0,111260.0,1.15538937]
[1747969439140,0.33992561,111270.0,111260.0,0.88602937]
[1747969439347,0.33992561,111270.0,111260.0,1.15538937]
[1747969441571,0.33992561,111270.0,111260.0,0.81605323]
[1747969441906,0.47567845,111270.0,111260.0,0.42665323]
[1747969442114,0.47567845,111270.0,111260.0,0.69601323]
[1747969443655,0.33992561,111270.0,111260.0,0.69601323]
[1747969445585,0.33469561,111270.0,111260.0,0.69601323]
[1747969445836,0.32015476,111270.0,111260.0,2.47793474]
[1747969448626,0.29177137,111270.0,111260.0,2.47793474]
[1747969448803,0.21922581,111270.0,111260.0,2.47793474]
[1747969449215,0.23572581,111270.0,111260.0,2.47793474]
[1747969449843,0.23572581,111270.0,111260.0,2.81793474]
[1747969450903,0.21922581,111270.0,111260.0,2.81793474]
[1747969452314,0.20222581,111270.0,111260.0,2.81793474]
[1747969452530,0.20222581,111270.0,111260.0,2.82151107]
[1747969455556,0.20222581,111270.0,111260.0,2.55215107]
[1747969455799,0.21842581,111270.0,111260.0,2.82151107]
[1747969457765,0.23452581,111270.0,111260.0,2.82151107]
[1747969460190,0.21842581,111270.0,111260.0,2.82151107]
[1747969461584,0.21842581,111270.0,111260.0,2.73198956]
[1747969461839,0.23582581,111270.0,111260.0,2.73198956]
[1747969462005,0.23582581,111270.0,111260.0,2.04718956]
[1747969462180,0.23582581,111270.0,111260.0,2.72942956]
[1747969466224,0.23582581,111270.0,111260.0,3.11730956]
[1747969466511,0.23582581,111270.0,111260.0,3.20683107]
[1747969467788,0.23582581,111270.0,111260.0,2.86683107]
[1747969468158,0.21842581,111270.0,111260.0,2.86683107]
[1747969468362,0.21842581,111270.0,111260.0,3.20683107]
[1747969468518,0.20222581,111270.0,111260.0,3.20683107]
[1747969468723,0.20222581,111270.0,111260.0,3.22283107]
[1747969469823,0.20222581,111270.0,111260.0,3.20683107]
[1747969470574,0.21852581,111270.0,111260.0,3.21945551]
[1747969475837,0.20222581,111270.0,111260.0,3.23535551]
[1747969477328,0.20222581,111270.0,111260.0,3.21945551]
[1747969477607,0.20222581,111270.0,111260.0,3.23605551]
[1747969485121,0.20222581,111270.0,111260.0,3.21945551]
[1747969488053,0.21732581,111270.0,111260.0,3.21945551]
[1747969488943,0.23432581,111270.0,111260.0,2.87574436]
[1747969490065,0.23432581,111270.0,111260.0,2.89009581]
[1747969491560,0.23432581,111270.0,111260.0,2.87574436]
[1747969495314,0.23432581,111270.0,111260.0,2.89009581]
[1747969495979,0.23432581,111270.0,111260.0,2.20785581]
[1747969496205,0.23432581,111270.0,111260.0,2.97709732]
[1747969496625,0.23432581,111270.0,111260.0,2.20785581]
[1747969496826,0.23432581,111270.0,111260.0,2.88757581]
[1747969497235,0.23432581,111270.0,111260.0,2.61821581]
[1747969497436,0.23432581,111270.0,111260.0,2.88757581]
[1747969499438,0.2336068,111270.0,111260.0,2.88757581]
[1747969500513,0.2336068,111270.0,111260.0,2.87322436]
[1747969500729,0.2336068,111270.0,111260.0,2.96274587]
[1747969501337,0.2336068,111270.0,111260.0,2.87322436]
[1747969516787,0.2336068,111270.0,111260.0,2.19350436]
[1747969517004,0.33769321,111270.0,111260.0,0.79824]
[1747969517229,0.33769321,111270.0,111260.0,1.4076]
[1747969517649,0.33769321,111270.0,111260.0,0.79824]
[1747969517877,0.23558776,111260.0,111250.0,0.00023]
[1747969518102,0.46088616,111260.0,111250.0,0.00023]
[1747969518441,0.46088616,111260.0,111250.0,0.26959]
[1747969518762,0.32513332,111260.0,111250.0,0.26959]
[1747969519864,0.39513332,111260.0,111250.0,0.26959]
[1747969520088,0.39613332,111260.0,111250.0,0.26959]
[1747969521096,0.39713332,111260.0,111250.0,0.26959]
[1747969527450,0.39713332,111260.0,111250.0,0.337585]
[1747969528423,0.39713332,111260.0,111250.0,0.26959]
[1747969545717,0.73713332,111260.0,111250.0,0.26959]
[1747969547070,0.73713332,111260.0,111250.0,0.26967]
[1747969547291,0.74550758,111260.0,111250.0,0.26967]
[1747969548326,0.40550758,111260.0,111250.0,0.26967]
[1747969549489,0.40550758,111260.0,111250.0,0.67759]
[1747969549929,0.40550758,111260.0,111250.0,0.76711151]
[1747969554745,0.40550758,111260.0,111250.0,0.67759]
[1747969559174,0.40550758,111260.0,111250.0,0.68836091]
[1747969564171,0.40550758,111260.0,111250.0,0.41892091]
[1747969564457,0.40550758,111260.0,111250.0,0.68836091]
[1747969565902,0.74550758,111260.0,111250.0,0.68836091]
[1747969566361,0.74550758,111260.0,111250.0,0.76132942]
[1747969569275,0.74550758,111260.0,111250.0,0.08396942]
[1747969569478,0.74550758,111260.0,111250.0,0.68580091]
[1747969569679,0.71320758,111260.0,111250.0,0.68580091]
[1747969570302,0.72830758,111260.0,111250.0,0.68580091]
[1747969570919,0.71320758,111260.0,111250.0,0.68580091]
[1747969571588,0.70483332,111260.0,111250.0,0.68580091]
[1747969571792,0.70483332,111260.0,111250.0,0.76012342]
[1747969572442,0.69029247,111260.0,111250.0,0.76012342]
[1747969572826,0.68929247,111260.0,111250.0,0.76012342]
[1747969572981,0.68829247,111260.0,111250.0,0.76012342]
[1747969573379,0.69029247,111260.0,111250.0,0.76012342]
[1747969573578,0.68929247,111260.0,111250.0,0.76012342]
[1747969573800,0.68829247,111260.0,111250.0,0.76012342]
[1747969574008,0.69029247,111260.0,111250.0,0.76012342]
[1747969574247,0.69329247,111260.0,111250.0,0.76012342]
[1747969576033,0.19778754,111230.0,111220.0,0.20879631]
[1747969576283,0.19778754,111230.0,111220.0,4.05452687]
[1747969576670,0.19778754,111230.0,111220.0,4.42148787]
[1747969576909,0.19778778,111230.0,111220.0,4.41249709]
[1747969577341,0.19787918,111230.0,111220.0,4.7744586]
[1747969577948,0.18888929,111230.0,111220.0,4.09070774]
[1747969578162,0.18888929,111230.0,111220.0,4.77645876]
[1747969579223,0.18888929,111230.0,111220.0,4.79697297]
[1747969580079,0.18888929,111230.0,111220.0,4.32972728]
[1747969580206,0.18888929,111230.0,111220.0,4.50962172]
[1747969581951,0.18888929,111230.0,111220.0,4.23418172]
[1747969582172,0.18888929,111230.0,111220.0,4.48952172]
[1747969582380,0.20418929,111230.0,111220.0,4.48952172]
[1747969583671,0.20418929,111230.0,111220.0,3.81476172]
[1747969583672,0.21918929,111230.0,111220.0,3.81476172]
[1747969583892,0.21918929,111230.0,111220.0,2.84381521]
[1747969585371,0.21918929,111230.0,111220.0,3.23177521]
[1747969590058,0.21918929,111230.0,111220.0,2.96233521]
[1747969590297,0.30873485,111230.0,111220.0,0.79817421]
[1747969590507,0.3232757,111230.0,111220.0,1.06761421]
[1747969591358,0.3232757,111230.0,111220.0,1.42186665]
[1747969591763,0.3232757,111230.0,111220.0,1.42286665]
[1747969592807,0.3232757,111230.0,111220.0,1.41986665]
[1747969593214,0.3232757,111230.0,111220.0,1.42086665]
[1747969593660,0.3232757,111230.0,111220.0,0.79517421]
[1747969593880,0.3232757,111230.0,111220.0,1.06461421]
[1747969596696,0.3232757,111230.0,111220.0,1.0642]
[1747969598642,0.3932757,111230.0,111220.0,1.0642]
[1747969605126,0.3932757,111230.0,111220.0,1.06424]
[1747969605370,0.3932757,111230.0,111220.0,0.79476]
[1747969605593,0.3932757,111230.0,111220.0,1.06424]
[1747969606150,0.3932757,111230.0,111220.0,1.10994934]
[1747969608532,0.3932757,111230.0,111220.0,0.72198934]
[1747969608771,0.3932757,111230.0,111220.0,0.72210934]
[1747969613163,0.3932757,111230.0,111220.0,0.04970934]
[1747969613401,0.3932757,111230.0,111220.0,0.6764]
[1747969613900,0.08807174,111230.0,111220.0,1.20521495]
[1747969614162,0.09706155,111230.0,111220.0,4.59416175]
[1747969614362,0.0700914,111230.0,111220.0,4.69269793]
[1747969614585,0.02706139,111230.0,111220.0,4.69269793]
[1747969614786,0.21585937,111230.0,111220.0,4.68370723]
[1747969614996,0.21585937,111230.0,111220.0,4.77322874]
[1747969615211,0.21585937,111230.0,111220.0,4.76423796]
[1747969615414,0.21585937,111230.0,111220.0,4.77322874]
[1747969616237,0.20686956,111230.0,111220.0,4.76423796]
[1747969616481,0.19787959,111230.0,111220.0,4.76423796]
[1747969618591,0.19787959,111230.0,111220.0,4.77322882]
[1747969618811,0.19787959,111230.0,111220.0,4.76423796]
[1747969618959,0.19787959,111230.0,111220.0,4.79119996]
[1747969620686,0.18888938,111230.0,111220.0,4.78220902]
[1747969621114,0.18888938,111230.0,111220.0,4.79120012]
[1747969621743,0.18888938,111230.0,111220.0,4.80019098]
[1747969621950,0.18888938,111230.0,111220.0,4.79120012]
[1747969622152,0.18888938,111230.0,111220.0,4.80019098]
[1747969622358,0.18888938,111230.0,111220.0,4.80019114]
[1747969623044,0.01807134,111230.0,111220.0,4.81817262]
[1747969623265,0.0360512,111230.0,111220.0,4.809182]
[1747969623467,0.20686915,111230.0,111220.0,4.809182]
[1747969624329,0.19787926,111230.0,111220.0,4.79120012]
[1747969624600,0.19787926,111230.0,111220.0,4.80918208]
[1747969625460,0.19787926,111230.0,111220.0,4.23436851]
[1747969625682,0.21958921,111230.0,111220.0,3.721827]
[1747969625932,0.29174254,111230.0,111220.0,0.700842]
[1747969626145,0.3812881,111230.0,111220.0,0.700842]
[1747969626366,0.3812881,111230.0,111220.0,1.040842]
[1747969626367,0.30913477,111230.0,111220.0,1.040842]
[1747969626581,0.30913477,111230.0,111220.0,1.01388]
[1747969626785,0.30913477,111230.0,111220.0,0.700849]
[1747969626998,0.30913477,111230.0,111220.0,1.13037051]
[1747969629273,0.30913477,111230.0,111220.0,4.48123551]
[1747969629481,0.21958921,111230.0,111220.0,4.48123551]
[1747969631925,0.21958921,111230.0,111220.0,4.48127551]
[1747969632130,0.32367562,111230.0,111220.0,0.030969]
[1747969632367,0.32367562,111230.0,111220.0,0.67392]
[1747969633999,0.32367562,111230.0,111220.0,0.67292]
[1747969634353,0.32367562,111230.0,111220.0,0.67192]
[1747969634557,0.32467562,111230.0,111220.0,0.67192]
[1747969634761,0.32567562,111230.0,111220.0,0.67192]
[1747969634968,0.32567562,111230.0,111220.0,0.67196]
[1747969635392,0.32567562,111230.0,111220.0,0.74189432]
[1747969636921,0.60139543,111230.0,111220.0,0.002]
[1747969639490,0.60039543,111230.0,111220.0,0.002]
[1747969639808,0.60339543,111230.0,111220.0,0.003]
[1747969639980,0.60639543,111230.0,111220.0,0.003]
[1747969641359,0.67639543,111230.0,111220.0,0.003]
[1747969642320,0.40067562,111230.0,111220.0,0.003]
[1747969642550,0.67639543,111230.0,111220.0,0.003]
[1747969643405,0.76401433,111230.0,111220.0,0.003]
[1747969643827,0.67639543,111230.0,111220.0,0.003]
[1747969644446,0.40067562,111230.0,111220.0,0.003]
[1747969644678,0.67639543,111230.0,111220.0,0.003]
[1747969648451,0.40067562,111230.0,111180.0,0.40781573]
[1747969648654,0.40067562,111230.0,111180.0,0.10381814]
[1747969648655,0.19785895,111190.0,111180.0,0.10381814]
[1747969648899,0.19785895,111190.0,111180.0,3.80700073]
[1747969649545,0.19785895,111190.0,111180.0,3.80900073]
[1747969649762,0.19785895,111190.0,111180.0,4.07852073]
[1747969649981,0.19785895,111190.0,111180.0,4.07702986]
[1747969650177,0.19785895,111190.0,111180.0,4.16855137]
[1747969650897,0.19785895,111190.0,111180.0,4.17055137]
[1747969651268,0.19785895,111190.0,111180.0,4.16855137]
[1747969651708,0.19785895,111190.0,111180.0,4.17055137]
[1747969655044,0.19785895,111190.0,111180.0,4.51055137]
[1747969655296,0.19785895,111190.0,111180.0,4.89863137]
[1747969655878,0.19785895,111190.0,111180.0,4.89263137]
[1747969657088,0.19785895,111190.0,111180.0,4.62311137]
[1747969657291,0.19785895,111190.0,111180.0,4.87853137]
[1747969659529,0.19785895,111190.0,111180.0,4.89263137]
[1747969659956,0.19785895,111190.0,111180.0,4.89620868]
[1747969661459,0.19785895,111190.0,111180.0,4.86923368]
[1747969661875,0.19785895,111190.0,111180.0,4.85491564]
[1747969662528,0.19785895,111190.0,111180.0,4.84081564]
[1747969666317,0.01798666,111190.0,111180.0,5.02969852]
[1747969666519,0.19785895,111190.0,111180.0,5.06778695]
[1747969666943,0.19785895,111190.0,111180.0,5.05879286]
[1747969667164,0.19785895,111190.0,111180.0,5.06778712]
[1747969668485,0.18886574,111190.0,111180.0,5.06178712]
[1747969673288,0.17987229,111190.0,111180.0,5.06178712]
[1747969674909,0.17987229,111190.0,111180.0,5.07078121]
[1747969675167,0.17987229,111190.0,111180.0,5.04768712]
[1747969675373,0.17987229,111190.0,111180.0,5.03869286]
[1747969675786,0.17987229,111190.0,111180.0,4.79183056]
[1747969675963,0.17987229,111190.0,111180.0,4.78979086]
[1747969676375,0.17987229,111190.0,111180.0,4.60090806]
[1747969677019,0.17987229,111190.0,111180.0,4.59191364]
[1747969677238,0.17987229,111190.0,111180.0,4.60090806]
[1747969677446,0.17987229,111190.0,111180.0,4.6099024]
[1747969677860,0.17987229,111190.0,111180.0,4.60090806]
[1747969678299,0.17987229,111190.0,111180.0,4.61527707]
[1747969680749,0.17987229,111190.0,111180.0,4.60628265]
[1747969681080,0.17987229,111190.0,111180.0,4.61527707]
[1747969682092,0.19607229,111190.0,111180.0,4.61527707]
[1747969684776,0.19607229,111190.0,111180.0,3.94947707]
[1747969684971,0.21147229,111190.0,111180.0,1.22163814]
[1747969685171,0.37317118,111190.0,111180.0,0.80323814]
[1747969685415,0.38771203,111190.0,111180.0,1.07275814]
[1747969685668,0.3155587,111190.0,111180.0,1.07275814]
[1747969686085,0.3155587,111190.0,111180.0,1.0691666]
[1747969686413,0.3155587,111190.0,111180.0,1.15868811]
[1747969690236,0.3155587,111190.0,111180.0,0.88916811]
[1747969690439,0.3155587,111190.0,111180.0,1.15868811]
[1747969695650,0.3155587,111190.0,111180.0,1.14791064]
[1747969696110,0.3155587,111190.0,111180.0,0.87839064]
[1747969696339,0.3155587,111190.0,111180.0,1.14795064]
[1747969702882,0.3155587,111190.0,111180.0,4.25195364]
[1747969709058,0.3155587,111190.0,111180.0,4.26273111]
[1747969709695,0.3155587,111190.0,111180.0,3.87465111]
[1747969712567,0.3155587,111190.0,111180.0,3.31594811]
[1747969712796,0.3155587,111190.0,111180.0,0.68646811]
[1747969713013,0.3155587,111190.0,111180.0,0.95602811]
[1747969713612,0.3155587,111190.0,111180.0,0.7946066]
[1747969714111,0.3155587,111190.0,111180.0,0.7926066]
[1747969714522,0.3155587,111190.0,111180.0,0.6762066]
[1747969715087,0.3155587,111190.0,111180.0,0.6772066]
[1747969716347,0.3155587,111190.0,111180.0,0.6762066]
[1747969716755,0.3155587,111190.0,111180.0,0.6752066]
[1747969716961,0.3175587,111190.0,111180.0,0.76472811]
[1747969718376,0.3195587,111190.0,111180.0,0.76472811]
[1747969718729,0.21547229,111190.0,111180.0,0.76472811]
[1747969721338,0.21547229,111190.0,111180.0,0.77909712]
[1747969723616,0.21547229,111190.0,111180.0,0.76472811]
[1747969727907,0.21547229,111190.0,111180.0,3.86873111]
[1747969728106,0.20007229,111190.0,111180.0,3.86873111]
[1747969728314,0.21657229,111190.0,111180.0,3.86873111]
[1747969728706,0.21657229,111190.0,111180.0,3.7792096]
[1747969729690,0.21657229,111190.0,111180.0,3.78280114]
[1747969736009,0.21657229,111190.0,111180.0,4.12280114]
[1747969737058,0.21657229,111190.0,111180.0,4.51096114]
[1747969737318,0.59214616,111190.0,111180.0,3.11272853]
[1747969737564,0.59422357,111180.0,111170.0,0.00191]
[1747969737788,0.66048437,111160.0,111150.0,0.02868766]
[1747969738008,0.83218326,111160.0,111150.0,0.0288251]
[1747969738722,0.69643953,111160.0,111150.0,0.00013744]
[1747969739156,0.69607977,111160.0,111150.0,0.00013744]
[1747969739582,0.70107977,111160.0,111150.0,0.00113744]
[1747969739804,0.705832,111160.0,111150.0,0.00113744]
[1747969740613,0.98607169,111160.0,111150.0,0.00113744]
[1747969740831,1.05607169,111160.0,111150.0,0.00113744]
[1747969741645,0.779832,111160.0,111150.0,0.00113744]
[1747969742421,0.43143898,111160.0,111150.0,0.00113744]
[1747969742630,0.69767867,111160.0,111150.0,0.00113744]
[1747969743054,0.71107752,111160.0,111150.0,0.00113744]
[1747969744187,0.79897373,111160.0,111150.0,0.00113744]
[1747969744382,0.70107752,111160.0,111150.0,0.00113744]
[1747969744587,0.71107752,111160.0,111150.0,0.00113744]
[1747969746791,0.70107752,111160.0,111150.0,0.00113744]
[1747969746996,0.43483783,111160.0,111150.0,0.00113744]
[1747969747200,0.72018544,111160.0,111150.0,0.00113744]
[1747969748209,0.44394575,111160.0,111150.0,0.00113744]
[1747969750011,0.43483783,111160.0,111150.0,0.00113744]
[1747969756110,0.42483783,111160.0,111150.0,0.00113744]
[1747969757908,0.43483783,111160.0,111150.0,0.00113744]
[1747969758503,0.42483783,111160.0,111150.0,0.00113744]
[1747969760423,0.43483783,111160.0,111150.0,0.00113744]
[1747969760599,0.42483783,111160.0,111150.0,0.00113744]
[1747969760805,0.43483783,111160.0,111150.0,0.00113744]
[1747969760983,0.42483783,111160.0,111150.0,0.00113744]
[1747969762040,0.43483783,111160.0,111150.0,0.00113744]
[1747969762241,0.57073825,111160.0,111150.0,0.00113744]
[1747969762672,0.42483783,111160.0,111150.0,0.00113744]
[1747969763226,0.1799694,111130.0,111120.0,0.39292]
[1747969763359,0.26951496,111130.0,111120.0,3.53070947]
[1747969764475,0.26951496,111130.0,111120.0,3.80042947]
[1747969766816,0.1799694,111130.0,111120.0,3.80042947]
[1747969767017,0.1799694,111130.0,111120.0,3.80512947]
[1747969770381,0.1799694,111130.0,111120.0,3.80042947]
[1747969771953,0.1799694,111130.0,111120.0,3.80512947]
[1747969772506,0.1799694,111130.0,111120.0,3.80442947]
[1747969772706,0.1799694,111130.0,111120.0,3.80042947]
[1747969775093,0.1799694,111130.0,111120.0,4.14042947]
[1747969778467,0.1961694,111130.0,111120.0,4.14042947]
[1747969779724,0.1961694,111130.0,111120.0,3.80042947]
[1747969779946,0.2121694,111130.0,111120.0,3.13778947]
[1747969780091,0.2121694,111130.0,111120.0,3.79906947]
[1747969784963,0.2121694,111130.0,111120.0,3.56000947]
[1747969785811,0.2121694,111130.0,111120.0,3.29028947]
[1747969786009,0.30171496,111130.0,111120.0,2.54209747]
[1747969786257,0.30171496,111130.0,111120.0,2.81181747]
[1747969787309,0.30271496,111130.0,111120.0,2.81181747]
[1747969788139,0.30471496,111130.0,111120.0,2.81281747]
[1747969788342,0.2151694,111130.0,111120.0,3.24233898]
[1747969788549,0.1829694,111130.0,111120.0,3.24233898]
[1747969789060,0.1982694,111130.0,111120.0,3.24233898]
[1747969789439,0.2140694,111130.0,111120.0,3.24233898]
[1747969795933,0.2140694,111130.0,111120.0,2.58105898]
[1747969796132,0.2140694,111130.0,111120.0,3.24233898]
[1747969801341,0.1829694,111130.0,111120.0,3.24233898]
[1747969801553,0.1829694,111130.0,111120.0,2.97261898]
[1747969801772,0.1829694,111130.0,111120.0,3.24233898]
[1747969801994,0.1829694,111130.0,111120.0,2.97261898]
[1747969802413,0.1829694,111130.0,111120.0,3.24233898]
[1747969803754,0.1829694,111130.0,111120.0,2.97261898]
[1747969803971,0.1829694,111130.0,111120.0,3.24233898]
[1747969805072,0.1829694,111130.0,111120.0,2.97261898]
[1747969805299,0.1829694,111130.0,111120.0,3.24233898]
[1747969806039,0.1829694,111130.0,111120.0,2.97261898]
[1747969806244,0.1829694,111130.0,111120.0,3.24233898]
[1747969806450,0.1829694,111130.0,111120.0,3.25670594]
[1747969807349,0.1829694,111130.0,111120.0,2.98698594]
[1747969807550,0.1829694,111130.0,111120.0,3.25670594]
[1747969808660,0.1829694,111130.0,111120.0,3.24626106]
[1747969809051,0.1829694,111130.0,111120.0,2.97654106]
[1747969809258,0.1829694,111130.0,111120.0,3.24622106]
[1747969810107,0.1982694,111130.0,111120.0,3.43520594]
[1747969810306,0.1829694,111130.0,111120.0,3.24622106]
[1747969811977,0.1988694,111130.0,111120.0,3.24622106]
[1747969812235,0.1829694,111130.0,111120.0,3.24622106]
[1747969813760,0.2142694,111130.0,111120.0,2.58498106]
[1747969814178,0.2142694,111130.0,111120.0,3.24478106]
[1747969814387,0.2142694,111130.0,111120.0,2.97510106]
[1747969814611,0.2142694,111130.0,111120.0,3.24478106]
[1747969816496,0.2142694,111130.0,111120.0,3.2304141]
[1747969817277,0.2142694,111130.0,111120.0,2.9607341]
[1747969817612,0.2142694,111130.0,111120.0,3.2304141]
[1747969818245,0.2142694,111130.0,111120.0,2.9607341]
[1747969818641,0.2142694,111130.0,111120.0,3.2304141]
[1747969818896,0.2142694,111130.0,111120.0,1.2125]
[1747969819121,0.2142694,111130.0,111120.0,1.60262]
[1747969819340,0.2142694,111130.0,111120.0,2.2123]
[1747969820559,0.01199782,111130.0,111120.0,2.4428518]
[1747969820787,0.02099588,111130.0,111120.0,2.53709736]
[1747969820999,0.04799103,111130.0,111120.0,2.60304968]
[1747969821151,0.03899321,111130.0,111120.0,2.60304968]
[1747969821364,0.03699321,111130.0,111120.0,2.61104847]
[1747969821562,0.02799402,111130.0,111120.0,2.62004718]
[1747969821806,0.0199958,111130.0,111120.0,2.62004718]
[1747969822109,0.02899394,111130.0,111120.0,2.62004718]
[1747969822277,0.0199958,111130.0,111120.0,2.64703118]
[1747969822530,0.0189958,111130.0,111120.0,2.64703118]
[1747969822757,0.02799394,111130.0,111120.0,2.64703118]
[1747969823474,0.01799442,111140.0,111130.0,0.54696382]
[1747969823714,0.02699183,111140.0,111130.0,3.81878389]
[1747969823927,0.0359894,111140.0,111130.0,3.80978599]
[1747969824106,0.02699183,111140.0,111130.0,3.81878389]
[1747969824530,0.0359894,111140.0,111130.0,3.81878389]
[1747969824921,0.04798706,111140.0,111130.0,3.81978405]
[1747969825173,0.002,111150.0,111130.0,3.78878947]
[1747969825355,0.002,111150.0,111140.0,3.79422734]
[1747969825588,0.0199928,111150.0,111140.0,3.8615294]
[1747969825726,0.03798642,111150.0,111140.0,3.8615294]
[1747969826386,0.20892659,111150.0,111140.0,3.5871494]
[1747969826528,0.23083031,111150.0,111140.0,4.2468694]
[1747969826719,0.23083031,111150.0,111140.0,4.15728384]
[1747969827553,0.23083031,111150.0,111140.0,3.54764384]
[1747969827759,0.23083031,111150.0,111140.0,3.81728384]
[1747969827960,0.23083031,111150.0,111140.0,3.40345084]
[1747969828161,0.23083031,111150.0,111140.0,2.74813084]
[1747969828358,0.23083031,111150.0,111140.0,3.00353084]
[1747969833258,0.23083031,111150.0,111140.0,2.67153084]
[1747969833471,0.23083031,111150.0,111140.0,2.01185084]
[1747969833693,0.23083031,111150.0,111140.0,2.67001084]
[1747969833915,0.23083031,111150.0,111140.0,1.74681084]
[1747969834547,0.23083031,111150.0,111140.0,1.16951084]
[1747969836155,0.23083031,111150.0,111140.0,3.68427084]
[1747969836357,0.23083031,111150.0,111140.0,3.95391084]
[1747969844205,0.23083031,111150.0,111140.0,3.29575084]
[1747969844412,0.23083031,111150.0,111140.0,3.95395084]
[1747969856120,0.23083031,111150.0,111140.0,1.06875084]
[1747969856330,0.23083031,111150.0,111140.0,1.54285084]
[1747969856537,0.23083031,111150.0,111140.0,1.27321084]
[1747969856740,0.23083031,111150.0,111140.0,1.54285084]
[1747969856949,0.23083031,111150.0,111140.0,1.55718922]
[1747969861214,0.32037587,111150.0,111140.0,0.81344922]
[1747969861416,0.32037587,111150.0,111140.0,1.91708922]
[1747969861627,0.32037587,111150.0,111140.0,1.59605989]
[1747969862207,0.32037587,111150.0,111140.0,1.58172151]
[1747969863645,0.32037587,111150.0,111140.0,1.4922]
[1747969864298,0.32037587,111150.0,111140.0,1.83076]
[1747969866458,0.32037587,111150.0,111140.0,1.49076]
[1747969870170,0.32037587,111150.0,111140.0,1.83076]
[1747969871382,0.32037587,111150.0,111140.0,1.25144655]
[1747969871975,0.32037587,111150.0,111140.0,1.34096806]
[1747969873274,0.32037587,111150.0,111140.0,1.34451989]
[1747969876135,0.14043885,111150.0,111140.0,1.34451989]
[1747969877423,0.14043885,111150.0,111140.0,1.35530598]
[1747969878380,0.14043885,111150.0,111140.0,1.26578447]
[1747969878883,0.12244556,111150.0,111140.0,1.26578447]